[Event "FIDE Open Sachove Univerzity QCC"]
[Site "Ceske Budejovice"]
[Date "2020.07.06"]
[Round "6.22"]
[White "Jodas, Daniel"]
[Black "Roubal, Matyas"]
[Result "1/2-1/2"]
[ECO "C45"]
[WhiteElo "1608"]
[BlackElo "1443"]
[Annotator "NA"]
[PlyCount "92"]
[EventDate "2020.07.01"]
[EventType "swiss"]
[EventCountry "CZE"]
[SourceTitle "playchess.com"]
[Source "ChessBase"]
[SourceQuality "1"]
[TimeControl "40/5400+30:1800+30"]

1. e4 {[%emt 0:00:00]} e5 {[%emt 0:00:00]} 2. Nf3 {[%emt 0:00:00]} Nc6 {[%emt 0:00:00]} 3. d4 {[%emt 0:00:00]} exd4 {[%emt 0:00:00]} 4. Nxd4 {[%emt 0:00:01]} Bc5 {[%emt 0:00:00]} 5. Nxc6 {[%emt 0:01:16]} Qf6 {[%emt 0:00:21]} 6. Qf3 {[%emt 0:00:35]} Qxf3 {[%emt 0:00:40]} 7. gxf3 {[%emt 0:00:04]} dxc6 {[%emt 0:00:13]} 8. Rg1 {[%emt 0:02:12]} g6 {[%emt 0:03:54]} 9. Bf4 {[%emt 0:01:25]} Bb6 {[%emt 0:01:52]} 10. Nd2 {[%emt 0:00:39]} Be6 {[%emt 0:01:14]} 11. Nc4 {[%emt 0:01:02]} O-O-O {[%emt 0:03:29]} 12. Nxb6+ {[%emt 0:00:21]} cxb6 {[%emt 0:00:15]} 13. Bd3 {[%emt 0:00:35]} Ne7 {[%emt 0:01:27]} 14. a3 {[%emt 0:02:18]} Rhe8 {[%emt 0:01:13]} 15. O-O-O {[%emt 0:00:26]} c5 {[%emt 0:02:52]} 16. Bg5 {[%emt 0:14:51]} Rd7 {[%emt 0:02:44]} 17. Be2 {[%emt 0:05:48]} Nc6 {[%emt 0:03:36]} 18. Rxd7 {[%emt 0:01:48]} Bxd7 {[%emt 0:00:28]} 19. Bf6 {[%emt 0:00:33]} Re6 {[%emt 0:03:12]} 20. Bc3 {[%emt 0:02:47]} Re8 {[%emt 0:08:04]} 21. Bd3 {[%emt 0:14:03]} Ne7 {[%emt 0:04:56]} 22. f4 {[%emt 0:18:10]} f5 {[%emt 0:02:32]} 23. e5 {[%emt 0:03:06]} Nd5 {[%emt 0:02:28]} 24. Bd2 {[%emt 0:00:20]} Be6 {[%emt 0:02:11]} 25. Be2 {[%emt 0:03:43]} a6 {[%emt 0:03:34]} 26. Rd1 {[%emt 0:08:15]} b5 {[%emt 0:03:53]} 27. Bf3 {[%emt 0:01:18]} Rd8 {[%emt 0:01:29]} 28. Ba5 {[%emt 0:05:55]} b6 {[%emt 0:03:29]} 29. Bxd5 {[%emt 0:00:34]} Rxd5 {[%emt 0:00:35]} 30. Rxd5 {[%emt 0:01:04]} Bxd5 {[%emt 0:00:06]} 31. Bxb6 {[%emt 0:00:07]} c4 {[%emt 0:00:15]} 32. h4 {[%emt 0:00:15]} Kb7 {[%emt 0:00:27]} 33. Bc5 {[%emt 0:00:28]} Kc6 {[%emt 0:01:26]} 34. Bd6 {[%emt 0:00:10]} Bf7 {[%emt 0:01:48]} 35. Kd2 {[%emt 0:00:11]} Kd5 {[%emt 0:00:20]} 36. Kc3 {[%emt 0:05:37]} Be6 {[%emt 0:01:13]} 37. f3 {[%emt 0:00:46]} h5 {[%emt 0:01:17]} 38. Bb8 {[%emt 0:00:48]} Bf7 {[%emt 0:00:41]} 39. Ba7 {[%emt 0:00:39]} Be6 {[%emt 0:00:12]} 40. Kb4 {[%emt 0:00:17]} Kc6 {[%emt 0:00:06]} 41. a4 {[%emt 0:31:21]} Bd7 {[%emt 0:31:13]} 42. Be3 {[%emt 0:02:11]} Be6 {[%emt 0:01:52]} 43. Ka5 {[%emt 0:01:36]} Bc8 {[%emt 0:00:46]} 44. b3 {[%emt 0:01:55]} cxb3 {[%emt 0:01:34]} 45. cxb3 {[%emt 0:00:25]} bxa4 {[%emt 0:00:15]} 46. bxa4 {[%emt 0:00:11]} Kd5 {[%emt 0:01:03]} 1/2-1/2

[Event "FIDE Open Sachove Univerzity QCC"]
[Site "Ceske Budejovice"]
[Date "2020.07.06"]
[Round "6.23"]
[White "Svadlenka, Dominik"]
[Black "Vavrousek, Petr"]
[Result "1-0"]
[ECO "D44"]
[WhiteElo "1350"]
[BlackElo "1605"]
[Annotator "NA"]
[PlyCount "90"]
[EventDate "2020.07.01"]
[EventType "swiss"]
[EventCountry "CZE"]
[SourceTitle "playchess.com"]
[Source "ChessBase"]
[SourceQuality "1"]
[TimeControl "40/5400+30:1800+30"]

1. d4 {[%emt 0:00:00]} d5 {[%emt 0:00:00]} 2. c4 {[%emt 0:00:00]} c6 {[%emt 0:00:00]} 3. Nf3 {[%emt 0:00:04]} Nf6 {[%emt 0:00:02]} 4. Nc3 {[%emt 0:00:35]} e6 {[%emt 0:00:05]} 5. Bg5 {[%emt 0:00:12]} h6 {[%emt 0:01:01]} 6. Bh4 {[%emt 0:00:11]} dxc4 {[%emt 0:00:20]} 7. e4 {[%emt 0:00:24]} b5 {[%emt 0:00:12]} 8. e5 {[%emt 0:00:12]} g5 {[%emt 0:00:06]} 9. Nxg5 {[%emt 0:00:15]} hxg5 {[%emt 0:02:39]} 10. Bxg5 {[%emt 0:00:14]} Be7 {[%emt 0:00:48]} 11. exf6 {[%emt 0:01:19]} Bxf6 {[%emt 0:00:18]} 12. Bxf6 {[%emt 0:00:09]} Qxf6 {[%emt 0:00:07]} 13. g3 {[%emt 0:00:42]} Bb7 {[%emt 0:08:55]} 14. Bg2 {[%emt 0:01:59]} a6 {[%emt 0:08:19]} 15. O-O {[%emt 0:01:36]} Nd7 {[%emt 0:00:30]} 16. a4 {[%emt 0:02:33]} b4 {[%emt 0:04:23]} 17. Ne4 {[%emt 0:03:52]} Qe7 {[%emt 0:00:09]} 18. Qc2 {[%emt 0:01:09]} a5 {[%emt 0:02:34]} 19. Qxc4 {[%emt 0:02:53]} Ba6 {[%emt 0:00:25]} 20. Qxc6 {[%emt 0:00:23]} O-O {[%emt 0:01:14]} 21. Rfd1 {[%emt 0:03:34]} Rfd8 {[%emt 0:06:12]} 22. Qc1 {[%emt 0:02:22]} Rac8 {[%emt 0:02:50]} 23. Qg5+ {[%emt 0:09:59]} Qxg5 {[%emt 0:00:14]} 24. Nxg5 {[%emt 0:00:46]} Rc2 {[%emt 0:00:37]} 25. d5 {[%emt 0:02:34]} e5 {[%emt 0:06:19]} 26. b3 {[%emt 0:03:01]} Nf6 {[%emt 0:02:49]} 27. Rdc1 {[%emt 0:10:39]} Rdc8 {[%emt 0:01:38]} 28. Re1 {[%emt 0:07:58]} Kf8 {[%emt 0:09:39]} 29. Bf1 {[%emt 0:02:29]} Bxf1 {[%emt 0:02:59]} 30. Rxf1 {[%emt 0:09:03]} Nxd5 {[%emt 0:01:25]} 31. Rfe1 {[%emt 0:02:24]} f6 {[%emt 0:01:18]} 32. Ne4 {[%emt 0:03:40]} Ke7 {[%emt 0:01:58]} 33. Rad1 {[%emt 0:07:21]} Nc3 {[%emt 0:07:04]} 34. Rd2 {[%emt 0:07:36]} Rxd2 {[%emt 0:12:53]} 35. Nxd2 {[%emt 0:00:39]} Rd8 {[%emt 0:01:09]} 36. Nc4 {[%emt 0:00:50]} Rd5 {[%emt 0:01:33]} 37. f4 {[%emt 0:01:37]} e4 {[%emt 0:03:04]} 38. g4 {[%emt 0:03:56]} Ke6 {[%emt 0:02:20]} 39. f5+ {[%emt 0:00:21]} Kf7 {[%emt 0:00:44]} 40. Kg2 {[%emt 0:01:54]} Kg7 {[%emt 0:02:48]} 41. Kg3 {[%emt 0:31:20]} Kh6 {[%emt 0:33:20]} 42. h4 {[%emt 0:00:20]} Rd3+ {[%emt 0:00:37]} 43. Re3 {[%emt 0:00:54]} Nd5 {[%emt 0:05:03]} 44. Rxd3 {[%emt 0:01:56]} exd3 {[%emt 0:00:03]} 45. Kf3 {[%emt 0:00:34]} Nb6 {[%emt 0:00:02]} 1-0

[Event "FIDE Open Sachove Univerzity QCC"]
[Site "Ceske Budejovice"]
[Date "2020.07.06"]
[Round "6.24"]
[White "Karweit, Alex W"]
[Black "Veselsky, Jan"]
[Result "1/2-1/2"]
[ECO "D85"]
[WhiteElo "1579"]
[BlackElo "1580"]
[Annotator "NA"]
[PlyCount "104"]
[EventDate "2020.07.01"]
[EventType "swiss"]
[EventCountry "CZE"]
[SourceTitle "playchess.com"]
[Source "ChessBase"]
[SourceQuality "1"]
[TimeControl "40/5400+30:1800+30"]

1. d4 {[%emt 0:00:00]} Nf6 {[%emt 0:00:10]} 2. c4 {[%emt 0:00:00]} g6 {[%emt 0:00:06]} 3. Nc3 {[%emt 0:00:00]} d5 {[%emt 0:00:12]} 4. cxd5 {[%emt 0:00:01]} Nxd5 {[%emt 0:00:02]} 5. Bd2 {[%emt 0:00:08]} Bg7 {[%emt 0:00:35]} 6. e4 {[%emt 0:00:10]} Nxc3 {[%emt 0:00:24]} 7. Bxc3 {[%emt 0:00:05]} O-O {[%emt 0:01:13]} 8. Qd2 {[%emt 0:00:07]} Nd7 {[%emt 0:01:16]} 9. Nf3 {[%emt 0:04:14]} Nf6 {[%emt 0:01:31]} 10. Bd3 {[%emt 0:00:15]} b6 {[%emt 0:01:29]} 11. Bc2 {[%emt 0:03:49]} Bb7 {[%emt 0:01:34]} 12. d5 {[%emt 0:05:46]} c6 {[%emt 0:03:13]} 13. dxc6 {[%emt 0:08:36]} Bxc6 {[%emt 0:03:00]} 14. Qe2 {[%emt 0:04:38]} Qc7 {[%emt 0:01:07]} 15. Nd4 {[%emt 0:07:19]} Bb7 {[%emt 0:01:14]} 16. f3 {[%emt 0:03:16]} a6 {[%emt 0:11:33]} 17. O-O {[%emt 0:02:21]} Rac8 {[%emt 0:03:27]} 18. Bb3 {[%emt 0:07:31]} Nd7 {[%emt 0:04:46]} 19. Qd2 {[%emt 0:13:00]} Nc5 {[%emt 0:16:05]} 20. Rfd1 {[%emt 0:04:50]} Rfd8 {[%emt 0:01:31]} 21. Qe3 {[%emt 0:01:56]} Be5 {[%emt 0:04:17]} 22. Qh6 {[%emt 0:04:50]} Nxb3 {[%emt 0:06:47]} 23. axb3 {[%emt 0:05:31]} Qc5 {[%emt 0:09:40]} 24. b4 {[%emt 0:00:40]} Qc7 {[%emt 0:02:33]} 25. Ne2 {[%emt 0:04:49]} b5 {[%emt 0:02:07]} 26. h4 {[%emt 0:03:19]} Bxc3 {[%emt 0:07:53]} 27. bxc3 {[%emt 0:01:33]} Qe5 {[%emt 0:00:34]} 28. Qf4 {[%emt 0:00:55]} Qe6 {[%emt 0:04:08]} 29. Rxd8+ {[%emt 0:07:20]} Rxd8 {[%emt 0:00:14]} 30. Qc7 {[%emt 0:00:19]} Rd7 {[%emt 0:03:29]} 31. Qb8+ {[%emt 0:00:35]} Kg7 {[%emt 0:00:04]} 32. Nd4 {[%emt 0:00:33]} Qf6 {[%emt 0:01:52]} 33. h5 {[%emt 0:02:34]} Bxe4 {[%emt 0:03:42]} 34. fxe4 {[%emt 0:03:49]} Qg5 {[%emt 0:02:49]} 35. Re1 {[%emt 0:02:04]} Qd2 {[%emt 0:00:16]} 36. Qg3 {[%emt 0:00:08]} Rc7 {[%emt 0:02:00]} 37. Nb3 {[%emt 0:00:34]} Qxc3 {[%emt 0:00:54]} 38. Qxc3+ {[%emt 0:00:47]} Rxc3 {[%emt 0:00:01]} 39. Nc5 {[%emt 0:00:08]} Ra3 {[%emt 0:00:14]} 40. hxg6 {[%emt 0:00:14]} hxg6 {[%emt 0:00:04]} 41. Rd1 {[%emt 0:30:46]} e6 {[%emt 0:02:37]} 42. Rd7 {[%emt 0:00:00]} Kf6 {[%emt 0:00:50]} 43. Ra7 {[%emt 0:00:00]} Ra1+ {[%emt 0:00:40]} 44. Kf2 {[%emt 0:00:00]} Rb1 {[%emt 0:00:10]} 45. Rxa6 {[%emt 0:00:00]} Rxb4 {[%emt 0:00:08]} 46. e5+ {[%emt 0:00:00]} Kf5 {[%emt 0:01:09]} 47. Nd3 {[%emt 0:00:00]} Rb3 {[%emt 0:00:39]} 48. Ke2 {[%emt 0:00:00]} Rc3 {[%emt 0:03:14]} 49. Rb6 {[%emt 0:00:00]} Ke4 {[%emt 0:00:22]} 50. Nf2+ {[%emt 0:00:00]} Kxe5 {[%emt 0:00:11]} 51. Rxb5+ {[%emt 0:00:00]} Kf4 {[%emt 0:02:58]} 52. Rb4+ {[%emt 0:00:00]} Kf5 {[%emt 0:00:26]} 1/2-1/2

[Event "FIDE Open Sachove Univerzity QCC"]
[Site "Ceske Budejovice"]
[Date "2020.07.06"]
[Round "6.25"]
[White "Martirosyan, David"]
[Black "Dudkova, Josefina"]
[Result "0-1"]
[ECO "B01"]
[WhiteElo "1560"]
[BlackElo "1447"]
[Annotator "NA"]
[PlyCount "60"]
[EventDate "2020.07.01"]
[EventType "swiss"]
[EventCountry "CZE"]
[SourceTitle "playchess.com"]
[Source "ChessBase"]
[SourceQuality "1"]
[TimeControl "40/5400+30:1800+30"]

1. e4 {[%emt 0:00:00]} d5 {[%emt 0:00:00]} 2. exd5 {[%emt 0:00:00]} Nf6 {[%emt 0:00:00]} 3. d4 {[%emt 0:00:40]} Bg4 {[%emt 0:00:39]} 4. Be2 {[%emt 0:03:08]} Bxe2 {[%emt 0:00:29]} 5. Nxe2 {[%emt 0:01:25]} Qxd5 {[%emt 0:00:39]} 6. O-O {[%emt 0:01:57]} Nc6 {[%emt 0:03:13]} 7. Nbc3 {[%emt 0:04:37]} Qf5 {[%emt 0:05:21]} 8. Bf4 {[%emt 0:03:52]} O-O-O {[%emt 0:01:03]} 9. Bg3 {[%emt 0:24:39]} g5 {[%emt 0:05:55]} 10. h3 {[%emt 0:15:51]} h5 {[%emt 0:05:09]} 11. f3 {[%emt 0:07:37]} Qg6 {[%emt 0:06:03]} 12. Qd2 {[%emt 0:08:26]} e5 {[%emt 0:18:33]} 13. Rad1 {[%emt 0:10:23]} Nxd4 {[%emt 0:14:25]} 14. Nxd4 {[%emt 0:06:44]} Rxd4 {[%emt 0:03:59]} 15. Qe2 {[%emt 0:01:03]} Bc5 {[%emt 0:03:24]} 16. Kh1 {[%emt 0:00:30]} Re8 {[%emt 0:07:49]} 17. Ne4 {[%emt 0:03:52]} Nxe4 {[%emt 0:03:04]} 18. fxe4 {[%emt 0:00:11]} a6 {[%emt 0:04:16]} 19. Rxd4 {[%emt 0:00:30]} Bxd4 {[%emt 0:01:04]} 20. c3 {[%emt 0:00:07]} Bb6 {[%emt 0:00:31]} 21. Rf5 {[%emt 0:00:34]} f6 {[%emt 0:01:35]} 22. Bf2 {[%emt 0:00:50]} Bxf2 {[%emt 0:03:11]} 23. Qxf2 {[%emt 0:00:08]} Re6 {[%emt 0:00:27]} 24. Qa7 {[%emt 0:02:14]} Rb6 {[%emt 0:00:37]} 25. b3 {[%emt 0:01:10]} g4 {[%emt 0:02:04]} 26. h4 {[%emt 0:00:57]} g3 {[%emt 0:00:46]} 27. Qa8+ {[%emt 0:00:55]} Kd7 {[%emt 0:00:16]} 28. Qf8 {[%emt 0:00:33]} Rd6 {[%emt 0:02:23]} 29. Rf1 {[%emt 0:00:36]} Rd2 {[%emt 0:01:37]} 30. Qc5 {[%emt 0:00:45]} Qxe4 {[%emt 0:00:53]} 0-1

[Event "FIDE Open Sachove Univerzity QCC"]
[Site "Ceske Budejovice"]
[Date "2020.07.06"]
[Round "6.26"]
[White "Bastyr, Pavel"]
[Black "Stary, Vojtech"]
[Result "1/2-1/2"]
[ECO "D91"]
[WhiteElo "1439"]
[BlackElo "1422"]
[Annotator "NA"]
[PlyCount "38"]
[EventDate "2020.07.01"]
[EventType "swiss"]
[EventCountry "CZE"]
[SourceTitle "playchess.com"]
[Source "ChessBase"]
[SourceQuality "1"]
[TimeControl "40/5400+30:1800+30"]

1. d4 {[%emt 0:03:31]} Nf6 {[%emt 0:00:00]} 2. c4 {[%emt 0:00:07]} g6 {[%emt 0:00:18]} 3. Nc3 {[%emt 0:00:19]} d5 {[%emt 0:00:19]} 4. Bg5 {[%emt 0:03:43]} c6 {[%emt 0:07:00]} 5. Nf3 {[%emt 0:00:21]} Bg7 {[%emt 0:01:43]} 6. e3 {[%emt 0:01:45]} O-O {[%emt 0:03:56]} 7. Be2 {[%emt 0:01:16]} dxc4 {[%emt 0:04:23]} 8. Bxc4 {[%emt 0:00:14]} Nbd7 {[%emt 0:02:14]} 9. b4 {[%emt 0:03:06]} Nb6 {[%emt 0:02:09]} 10. Bb3 {[%emt 0:00:35]} Nbd5 {[%emt 0:01:09]} 11. Nxd5 {[%emt 0:00:12]} Nxd5 {[%emt 0:02:19]} 12. a3 {[%emt 0:02:58]} b6 {[%emt 0:05:34]} 13. O-O {[%emt 0:02:16]} Ba6 {[%emt 0:01:28]} 14. Re1 {[%emt 0:00:47]} Rc8 {[%emt 0:03:02]} 15. Rc1 {[%emt 0:00:12]} Kh8 {[%emt 0:08:44]} 16. e4 {[%emt 0:06:07]} Nf6 {[%emt 0:01:32]} 17. Ne5 {[%emt 0:02:57]} Qe8 {[%emt 0:01:49]} 18. Qf3 {[%emt 0:14:45]} Kg8 {[%emt 0:02:21]} 19. Rc3 {[%emt 0:07:00]} Bb7 {[%emt 0:03:04]} 1/2-1/2

[Event "FIDE Open Sachove Univerzity QCC"]
[Site "Ceske Budejovice"]
[Date "2020.07.06"]
[Round "6.27"]
[White "Zachar, Jaroslav"]
[Black "Barth Vit"]
[Result "1-0"]
[ECO "E20"]
[WhiteElo "1831"]
[BlackElo "1356"]
[Annotator "NA"]
[PlyCount "91"]
[EventDate "2020.07.01"]
[EventType "swiss"]
[EventCountry "CZE"]
[SourceTitle "playchess.com"]
[Source "ChessBase"]
[SourceQuality "1"]
[TimeControl "40/5400+30:1800+30"]

{[%evp 16,89,-71,32767,32767,32767,32767,32767,32767,32767,32767,32767,32767,-76,32767,32767,-67,32767,-101,-129,32767,32767,-60,32767,32767,32767,-160,-147,220,175,207,216,208,159,196,204,214,186,199,-25,-25,-35,-24,-78,32767,32767,32767,32767,32767,-92,32767,32767,0,0,14,16,96,67,71,39,228,262,210,289,235,274,422,505,1061,1040,32767,32767,32767,32767,32767,29989]} 1. d4 {[%emt 0:01:16]} d5 {[%emt 0:00:00]} 2. c4 {[%emt 0:00:30]} e6 {[%emt 0:01:02]} 3. Nc3 {[%emt 0:00:40]} Bb4 {[%emt 0:00:44]} 4. e3 {[%emt 0:00:18]} Nf6 {[%emt 0:02:25]} 5. Bd2 {[%emt 0:00:52]} Nbd7 {[%emt 0:02:03]} 6. a3 {[%emt 0:03:49] E20: Nimzo-Indian: 4 g3 and 4 f3.} Bxc3 {[%emt 0:01:41]} 7. bxc3 {[%emt 0:00:37] [#]} O-O $146 {[%emt 0:01:14]} ({Predecessor:} 7... c5 8. Nf3 a6 9. Rb1 Rb8 10. Bd3 O-O 11. O-O Nb6 12. cxd5 c4 13. Bc2 exd5 {1-0 (26) Do Huu Thuy,T-Le Hoai Bao,D Singapore 2002}) 8. f4 {[%emt 0:01:38]} Ne4 {[%emt 0:01:56]} 9. Nf3 {[%emt 0:01:24]} c5 {[%emt 0:01:41]} 10. Bd3 {[%emt 0:00:22]} f5 {[%emt 0:01:19]} 11. O-O {[%emt 0:00:14]} Qa5 {[%emt 0:02:22]} 12. Be1 {[%emt 0:04:04]} dxc4 {[%emt 0:02:38]} 13. Bxe4 {[%emt 0:02:26]} fxe4 {[%emt 0:00:52]} 14. Ng5 {[%emt 0:00:22]} Nf6 {[%emt 0:01:05]} 15. Qc2 {[%emt 0:00:23]} cxd4 $1 {[%emt 0:02:17]} 16. exd4 {[%emt 0:01:26]} Qd5 {[%emt 0:00:54]} 17. Bg3 {[%emt 0:00:45]} h6 {[%emt 0:00:43]} 18. Nh3 {[%emt 0:00:15]} Ng4 {[%emt 0:01:52]} 19. Qe2 {[%emt 0:02:08]} Qf5 {[%emt 0:01:31]} 20. Rfe1 {[%emt 0:09:31]} e3 {[%emt 0:00:43]} 21. Kh1 {[%emt 0:04:17]} Qd3 $2 {[%emt 0:01:19]} (21... Bd7 $17 {stays on course.} 22. Ng1 {[#]} Qxf4 $1 {[%mdl 512]}) 22. Qxg4 {[%emt 0:00:56]} e5 {[%emt 0:01:17]} 23. Qf3 {[%emt 0:01:27]} exd4 {[%emt 0:02:12]} 24. Qd5+ {[%emt 0:05:28]} Kh8 {[%emt 0:02:38]} 25. Qxd4 {[%emt 0:00:17]} Qxd4 {[%emt 0:00:35]} 26. cxd4 {[%emt 0:00:01]} Re8 {[%emt 0:00:59]} 27. Bf2 $2 {[%emt 0:04:28]} (27. Ng1 $18) 27... Bxh3 $1 {[%emt 0:00:48]} 28. Bxe3 {[%emt 0:01:01]} Bf5 {[%emt 0:00:46]} 29. h3 {[%emt 0:00:38]} h5 {[%emt 0:00:32]} 30. Kh2 {[%emt 0:00:24]} Re4 {[%emt 0:01:32]} 31. Kg3 {[%emt 0:00:44]} Rae8 {[%emt 0:00:42]} 32. Bf2 {[%emt 0:02:38]} b5 {[%emt 0:03:21]} 33. Kf3 {[%emt 0:00:27]} a5 {[%emt 0:01:52]} (33... g5 $5 34. fxg5 Bg6 $11) 34. g4 {[%emt 0:00:15]} hxg4+ {[%emt 0:00:41]} 35. hxg4 {[%emt 0:00:16]} Bh7 {[%emt 0:00:45]} (35... Rxe1 $1 $11 {remains equal.} 36. Rxe1 Be6) 36. f5 {[%emt 0:00:20]} Rxe1 $1 {[%emt 0:00:35]} 37. Bxe1 {[%emt 0:00:50]} a4 $2 {[%emt 0:05:36]} ({Black should try} 37... Bg8 $14) 38. Bc3 {[%emt 0:19:51]} Kg8 {[%emt 0:02:18]} 39. Rb1 {[%emt 0:03:49]} Rb8 {[%emt 0:01:36]} 40. Re1 {[%emt 0:01:04]} g5 {[%emt 0:02:53]} (40... Kf7 {keeps fighting.} 41. Kf4 g6) 41. Re7 {[%emt 0:30:59]} Rb6 {[%emt 0:33:30]} (41... Rf8 $142 42. Rb7 Bxf5 43. gxf5 Rxf5+ 44. Kg4 Rd5) 42. Ke4 {[%emt 0:02:18]} Rh6 {[%emt 0:01:40]} 43. d5 {[%emt 0:00:44]} Rh3 {[%emt 0:01:12]} 44. Bf6 {[%emt 0:00:43]} Kf8 {[%emt 0:08:41]} 45. d6 {[%emt 0:06:46]} Bxf5+ {[%emt 0:04:15]} 46. Kxf5 {[%emt 0:05:28]} 1-0

[Event "FIDE Open Sachove Univerzity QCC"]
[Site "Ceske Budejovice"]
[Date "2020.07.06"]
[Round "6.28"]
[White "Vojtek, Pavel"]
[Black "Smola, David"]
[Result "1/2-1/2"]
[ECO "C62"]
[WhiteElo "1292"]
[BlackElo "1649"]
[Annotator "NA"]
[PlyCount "57"]
[EventDate "2020.07.01"]
[EventType "swiss"]
[EventCountry "CZE"]
[SourceTitle "playchess.com"]
[Source "ChessBase"]
[SourceQuality "1"]
[TimeControl "40/5400+30:1800+30"]

1. e4 {[%emt 0:00:00]} e5 {[%emt 0:00:00]} 2. Nf3 {[%emt 0:00:00]} Nc6 {[%emt 0:00:27]} 3. Bb5 {[%emt 0:00:00]} d6 {[%emt 0:01:17]} 4. d4 {[%emt 0:00:29]} exd4 {[%emt 0:03:34]} 5. Nxd4 {[%emt 0:00:12]} Bd7 {[%emt 0:01:13]} 6. O-O {[%emt 0:06:28]} Nge7 {[%emt 0:04:25]} 7. c4 {[%emt 0:01:08]} Ne5 {[%emt 0:05:39]} 8. Bxd7+ {[%emt 0:03:14]} Qxd7 {[%emt 0:01:26]} 9. b3 {[%emt 0:02:30]} g6 {[%emt 0:04:50]} 10. f3 {[%emt 0:05:22]} Bg7 {[%emt 0:01:46]} 11. Be3 {[%emt 0:01:55]} O-O {[%emt 0:03:47]} 12. Nc3 {[%emt 0:01:32]} f5 {[%emt 0:02:43]} 13. Rc1 {[%emt 0:06:10]} Rf7 {[%emt 0:06:45]} 14. Nd5 {[%emt 0:03:56]} fxe4 {[%emt 0:06:43]} 15. fxe4 {[%emt 0:00:54]} Rxf1+ {[%emt 0:02:11]} 16. Qxf1 {[%emt 0:00:57]} Rf8 {[%emt 0:00:54]} 17. Qd1 {[%emt 0:04:39]} h5 {[%emt 0:06:30]} 18. Bg5 {[%emt 0:07:01]} Nxd5 {[%emt 0:06:21]} 19. exd5 {[%emt 0:00:52]} Bh8 {[%emt 0:02:30]} 20. Ne6 {[%emt 0:05:51]} Rf5 {[%emt 0:02:15]} 21. Qe2 {[%emt 0:02:08]} c6 {[%emt 0:05:44]} 22. Rf1 {[%emt 0:04:29]} Qf7 {[%emt 0:02:11]} 23. Rxf5 {[%emt 0:03:46]} Qxf5 {[%emt 0:00:22]} 24. Qf1 {[%emt 0:00:10]} Ng4 {[%emt 0:08:45]} 25. Qxf5 {[%emt 0:06:16]} gxf5 {[%emt 0:00:46]} 26. h3 {[%emt 0:01:31]} Nf6 {[%emt 0:01:54]} 27. dxc6 {[%emt 0:02:59]} bxc6 {[%emt 0:01:03]} 28. Nd4 {[%emt 0:02:34]} Ne4 {[%emt 0:01:38]} 29. Nf3 {[%emt 0:01:34]} 1/2-1/2

[Event "FIDE Open Sachove Univerzity QCC"]
[Site "Ceske Budejovice"]
[Date "2020.07.06"]
[Round "6.29"]
[White "Gorej, Jan"]
[Black "Barta, David"]
[Result "1-0"]
[ECO "A80"]
[WhiteElo "1247"]
[BlackElo "1541"]
[Annotator "NA"]
[PlyCount "41"]
[EventDate "2020.07.01"]
[EventType "swiss"]
[EventCountry "CZE"]
[SourceTitle "playchess.com"]
[Source "ChessBase"]
[SourceQuality "1"]
[TimeControl "40/5400+30:1800+30"]

1. d4 {[%emt 0:04:34]} d5 {[%emt 0:00:00]} 2. Bf4 {[%emt 0:00:03]} e6 {[%emt 0:00:20]} 3. Nf3 {[%emt 0:00:29]} f5 {[%emt 0:00:44]} 4. e3 {[%emt 0:00:45]} Nf6 {[%emt 0:00:15]} 5. Nbd2 {[%emt 0:00:21]} Nbd7 {[%emt 0:00:22]} 6. Bd3 {[%emt 0:01:31]} Be7 {[%emt 0:01:23]} 7. Qe2 {[%emt 0:00:39]} O-O {[%emt 0:00:55]} 8. O-O-O {[%emt 0:00:20]} Ne4 {[%emt 0:00:42]} 9. h3 {[%emt 0:02:59]} Ndf6 {[%emt 0:00:46]} 10. Ne5 {[%emt 0:01:05]} Bd7 {[%emt 0:04:43]} 11. Nb3 {[%emt 0:02:51]} a6 {[%emt 0:02:19]} 12. f3 {[%emt 0:02:06]} Qe8 {[%emt 0:07:50]} 13. g4 {[%emt 0:06:49]} fxg4 {[%emt 0:02:00]} 14. hxg4 {[%emt 0:06:47]} Nd6 {[%emt 0:01:10]} 15. Bxh7+ {[%emt 0:17:38]} Nxh7 {[%emt 0:03:13]} 16. Qh2 {[%emt 0:06:45]} Bh4 {[%emt 0:00:31]} 17. Qxh4 {[%emt 0:00:57]} Rf6 {[%emt 0:00:15]} 18. Qxh7+ {[%emt 0:00:57]} Kf8 {[%emt 0:00:09]} 19. Qh8+ {[%emt 0:03:06]} Ke7 {[%emt 0:00:05]} 20. Qxg7+ {[%emt 0:00:29]} Rf7 {[%emt 0:01:40]} 21. Bg5# {[%emt 0:00:50]} 1-0

[Event "FIDE Open Sachove Univerzity QCC"]
[Site "Ceske Budejovice"]
[Date "2020.07.07"]
[Round "7.1"]
[White "Svetly, Jiri"]
[Black "Svanda, Adam"]
[Result "1-0"]
[ECO "E33"]
[WhiteElo "1850"]
[BlackElo "1846"]
[Annotator "NA"]
[PlyCount "73"]
[EventDate "2020.07.01"]
[EventType "swiss"]
[EventCountry "CZE"]
[SourceTitle "playchess.com"]
[Source "ChessBase"]
[SourceQuality "1"]
[TimeControl "40/5400+30:1800+30"]

1. d4 {[%emt 0:00:00]} Nf6 {[%emt 0:00:00]} 2. c4 {[%emt 0:00:00]} e6 {[%emt 0:00:00]} 3. Nc3 {[%emt 0:00:00]} Bb4 {[%emt 0:00:16]} 4. Qc2 {[%emt 0:00:00]} Nc6 {[%emt 0:00:59]} 5. Nf3 {[%emt 0:00:50]} d6 {[%emt 0:00:59]} 6. a3 {[%emt 0:02:47]} Bxc3+ $1 {[%emt 0:00:40]} 7. Qxc3 {[%emt 0:00:12]} a5 {[%emt 0:01:41]} 8. Bg5 {[%emt 0:01:33]} O-O {[%emt 0:03:51] E33: Nimzo-Indian: Classical: 4...Nc6.} 9. e3 {[%emt 0:03:17]} Qe7 {[%emt 0:03:00]} 10. Nd2 {[%emt 0:09:33]} e5 {[%emt 0:13:30]} 11. d5 {[%emt 0:07:49]} Nb8 {[%emt 0:01:39]} 12. Bd3 {[%emt 0:02:59] [#]} Bg4 $146 {[%emt 0:11:55]} ({Predecessor:} 12... Nbd7 13. b4 Re8 14. Qb2 h6 15. Bh4 c6 16. e4 Nf8 17. O-O g5 18. Bg3 Ng6 {1-0 (39) Gershon,A (2460)-Vink,N (2285) Mureck 1998}) 13. O-O {[%emt 0:18:24]} Bh5 {[%emt 0:02:14]} 14. f4 {[%emt 0:03:29]} h6 {[%emt 0:06:53]} 15. Bxf6 {[%emt 0:06:59]} Qxf6 {[%emt 0:01:34]} 16. f5 {[%emt 0:02:19]} Qe7 {[%emt 0:04:18]} 17. f6 {[%emt 0:04:35]} gxf6 {[%emt 0:02:14]} 18. Bf5 {[%emt 0:06:08]} Bg6 {[%emt 0:13:46]} 19. Ne4 {[%emt 0:03:15]} Na6 {[%emt 0:04:00]} 20. b4 {[%emt 0:02:13]} axb4 {[%emt 0:02:21]} 21. axb4 {[%emt 0:00:09]} c5 {[%emt 0:03:20]} 22. b5 {[%emt 0:06:27]} Nc7 {[%emt 0:00:41]} 23. Rxa8 {[%emt 0:02:06]} Nxa8 $16 {[%emt 0:00:43]} 24. Qe1 {[%emt 0:04:17]} Nb6 {[%emt 0:02:10]} 25. Qh4 {[%emt 0:01:08]} Kg7 {[%emt 0:00:46]} 26. Ng3 {[%emt 0:01:03]} Rh8 {[%emt 0:03:45]} 27. Qg4 {[%emt 0:05:24]} h5 {[%emt 0:03:20]} 28. Qe2 {[%emt 0:00:40]} Nd7 {[%emt 0:02:57]} 29. Ne4 {[%emt 0:00:51]} Rh6 {[%emt 0:00:59]} 30. g4 {[%emt 0:00:46]} Bxf5 {[%emt 0:01:17]} 31. gxf5 {[%emt 0:00:20]} Kf8 {[%emt 0:03:29]} 32. Ra1 {[%emt 0:00:32]} Nb6 {[%emt 0:02:04]} 33. Kf2 {[%emt 0:01:25]} Qd8 {[%emt 0:01:01]} 34. Ra7 {[%emt 0:00:45]} Qb8 {[%emt 0:00:07]} 35. Qa2 {[%emt 0:00:04]} Ke8 {[%emt 0:03:39]} 36. Qa5 {[%emt 0:00:08]} Qc7 {[%emt 0:01:13]} 37. Rxb7 {[%emt 0:00:27]} 1-0